[Event "Masters Tournament (MTO)"]
[Site "Biel, Switzerland"]
[Date "2026.07.20"]
[Round "7.27"]
[White "Tkhoruk, Roman"]
[Black "Kudryavtsev, Eugene"]
[Result "1/2-1/2"]
[TimeControl "100+30+30sec/move"]
[WhiteTitle "-"]
[BlackTitle "-"]
[WhiteFideId "34161589"]
[BlackFideId "1315374"]
[WhiteElo "1967"]
[BlackElo "2146"]

1. e4 {[%clk 01:40:54]} {[%emt 00:00:04]} c5 {[%clk 01:40:51]} {[%emt
00:00:11]} 2. Nf3 {[%clk 01:40:40]} {[%emt 00:00:43]} d6 {[%clk 01:41:12]}
{[%emt 00:00:09]} 3. Bb5+ {[%clk 01:41:02]} {[%emt 00:00:08]} Nd7 {[%clk
01:41:31]} {[%emt 00:00:11]} 4. O-O {[%clk 01:41:19]} {[%emt 00:00:13]} a6
{[%clk 01:41:49]} {[%emt 00:00:12]} 5. Bd3 {[%clk 01:41:38]} {[%emt 00:00:11]}
Ngf6 {[%clk 01:42:09]} {[%emt 00:00:10]} 6. c3 {[%clk 01:42:01]} {[%emt
00:00:08]} b5 {[%clk 01:42:29]} {[%emt 00:00:09]} 7. Bc2 {[%clk 01:42:23]}
{[%emt 00:00:08]} Bb7 {[%clk 01:42:52]} {[%emt 00:00:06]} 8. Re1 {[%clk
01:42:39]} {[%emt 00:00:14]} Qc7 {[%clk 01:43:02]} {[%emt 00:00:21]} 9. d3
{[%clk 01:40:27]} {[%emt 00:02:42]} g6 {[%clk 01:42:02]} {[%emt 00:01:30]} 10.
h3 {[%clk 01:40:01]} {[%emt 00:00:56]} Bg7 {[%clk 01:42:21]} {[%emt 00:00:11]}
11. Bf4 {[%clk 01:40:14]} {[%emt 00:00:17]} e5 {[%clk 01:42:26]} {[%emt
00:00:25]} 12. Bh2 {[%clk 01:40:10]} {[%emt 00:00:34]} O-O {[%clk 01:39:25]}
{[%emt 00:03:32]} 13. Nbd2 {[%clk 01:39:19]} {[%emt 00:01:21]} Rac8 {[%clk
01:32:47]} {[%emt 00:07:08]} 14. Rc1 {[%clk 01:38:17]} {[%emt 00:01:30]} Rfe8
{[%clk 01:27:48]} {[%emt 00:05:30]} 15. c4 {[%clk 01:24:36]} {[%emt 00:14:11]}
Nf8 {[%clk 01:10:40]} {[%emt 00:17:38]} 16. b3 {[%clk 01:11:12]} {[%emt
00:13:54]} Bh6 {[%clk 01:02:04]} {[%emt 00:09:06]} 17. Rb1 {[%clk 01:08:28]}
{[%emt 00:03:14]} b4 {[%clk 00:53:56]} {[%emt 00:08:38]} 18. Nf1 {[%clk
01:07:20]} {[%emt 00:01:38]} Ne6 {[%clk 00:48:15]} {[%emt 00:06:11]} 19. Ne3
{[%clk 00:56:12]} {[%emt 00:11:38]} Nh5 {[%clk 00:44:46]} {[%emt 00:03:59]} 20.
g3 {[%clk 00:54:02]} {[%emt 00:02:39]} f6 {[%clk 00:33:53]} {[%emt 00:11:23]}
21. Nd5 {[%clk 00:46:26]} {[%emt 00:08:06]} Qf7 {[%clk 00:33:55]} {[%emt
00:00:28]} 22. Qe2 {[%clk 00:44:04]} {[%emt 00:02:52]} Rf8 {[%clk 00:30:51]}
{[%emt 00:03:35]} 23. Bd1 {[%clk 00:42:05]} {[%emt 00:02:28]} Kh8 {[%clk
00:29:31]} {[%emt 00:01:50]} 24. Rb2 {[%clk 00:37:21]} {[%emt 00:05:14]} Qg7
{[%clk 00:16:49]} {[%emt 00:13:12]} 25. Nh4 {[%clk 00:33:05]} {[%emt 00:04:46]}
f5 {[%clk 00:11:58]} {[%emt 00:05:21]} 26. Nxf5 {[%clk 00:14:56]} {[%emt
00:18:39]} gxf5 {[%clk 00:08:43]} {[%emt 00:03:45]} 27. Qxh5 {[%clk 00:15:19]}
{[%emt 00:00:07]} Bxd5 {[%clk 00:09:09]} {[%emt 00:00:05]} 28. cxd5 {[%clk
00:14:22]} {[%emt 00:01:27]} Nf4 {[%clk 00:08:30]} {[%emt 00:01:08]} 29. Qf3
{[%clk 00:14:04]} {[%emt 00:00:48]} fxe4 {[%clk 00:05:25]} {[%emt 00:03:35]} 30.
Qxe4 {[%clk 00:12:56]} {[%emt 00:01:38]} Nxh3+ {[%clk 00:05:31]} {[%emt
00:00:25]} 31. Kf1 {[%clk 00:11:57]} {[%emt 00:01:29]} Ng5 {[%clk 00:04:50]}
{[%emt 00:01:11]} 32. Qc4 {[%clk 00:06:55]} {[%emt 00:05:32]} a5 {[%clk
00:01:57]} {[%emt 00:03:23]} 33. Bg4 {[%clk 00:06:19]} {[%emt 00:01:06]} Nf3
{[%clk 00:01:34]} {[%emt 00:00:53]} 34. Bxc8 {[%clk 00:04:06]} {[%emt
00:02:43]} Nxh2+ {[%clk 00:01:23]} {[%emt 00:00:40]} 35. Kg2 {[%clk 00:04:24]}
{[%emt 00:00:11]} Nf3 {[%clk 00:01:46]} {[%emt 00:00:08]} 36. Re4 {[%clk
00:04:34]} {[%emt 00:00:20]} Qf6 {[%clk 00:00:50]} {[%emt 00:01:26]} 37. Bg4
{[%clk 00:04:19]} {[%emt 00:00:45]} Nd2 {[%clk 00:00:48]} {[%emt 00:00:32]} 38.
Rxd2 {[%clk 00:04:21]} {[%emt 00:00:29]} Bxd2 {[%clk 00:01:15]} {[%emt
00:00:03]} 39. Re2 {[%clk 00:04:43]} {[%emt 00:00:07]} Bc3 {[%clk 00:01:17]}
{[%emt 00:00:29]} 40. Qe4 {[%clk 00:00:46]} {[%emt 00:04:26]} Bd4 {[%clk
00:00:37]} {[%emt 00:01:11]} 41. Bf3 {[%clk 00:28:11]} {[%emt 00:03:05]} Qg6
{[%clk 00:14:27]} {[%emt 00:16:40]} 42. Qxg6 {[%clk 00:27:36]} {[%emt
00:01:05]} hxg6 {[%clk 00:14:52]} {[%emt 00:00:04]} 43. Bg4 {[%clk 00:27:35]}
{[%emt 00:00:31]} Rf7 {[%clk 00:15:17]} {[%emt 00:00:05]} 44. Be6 {[%clk
00:25:56]} {[%emt 00:02:09]} Ra7 {[%clk 00:14:35]} {[%emt 00:01:12]} 45. Rc2
{[%clk 00:25:34]} {[%emt 00:00:52]} Kg7 {[%clk 00:13:57]} {[%emt 00:01:08]} 46.
f4 {[%clk 00:21:12]} {[%emt 00:04:52]} a4 {[%clk 00:08:07]} {[%emt 00:06:20]}
47. bxa4 {[%clk 00:21:18]} {[%emt 00:00:24]} Rxa4 {[%clk 00:08:09]} {[%emt
00:00:28]} 48. fxe5 {[%clk 00:21:12]} {[%emt 00:00:36]} Bxe5 {[%clk 00:08:13]}
{[%emt 00:00:27]} 49. Bd7 {[%clk 00:21:21]} {[%emt 00:00:20]} Ra7 {[%clk
00:06:09]} {[%emt 00:02:34]} 50. Bb5 {[%clk 00:20:54]} {[%emt 00:00:57]} Bd4
{[%clk 00:05:20]} {[%emt 00:01:19]} 51. Re2 {[%clk 00:21:01]} {[%emt 00:00:23]}
Kh6 {[%clk 00:03:43]} {[%emt 00:02:08]} 52. Bc4 {[%clk 00:20:31]} {[%emt
00:01:00]} Rf7 {[%clk 00:03:38]} {[%emt 00:00:34]} 53. Bb3 {[%clk 00:20:31]}
{[%emt 00:00:30]} Rf5 {[%clk 00:03:24]} {[%emt 00:00:44]} 54. Bc4 {[%clk
00:20:06]} {[%emt 00:00:55]} Kg5 {[%clk 00:02:03]} {[%emt 00:01:51]} 55. Bb3
{[%clk 00:19:59]} {[%emt 00:00:37]} Rf6 {[%clk 00:01:54]} {[%emt 00:00:39]} 56.
Bc4 {[%clk 00:19:59]} {[%emt 00:00:30]} Kf5 {[%clk 00:02:04]} {[%emt 00:00:20]}
57. Bb5 {[%clk 00:17:24]} {[%emt 00:03:05]} Kg5 {[%clk 00:01:52]} {[%emt
00:00:42]} 58. Bc4 {[%clk 00:17:44]} {[%emt 00:00:10]} Kh6 {[%clk 00:02:05]}
{[%emt 00:00:17]} 59. Bb3 {[%clk 00:17:58]} {[%emt 00:00:16]} Kg7 {[%clk
00:01:53]} {[%emt 00:00:42]} 60. Bc4 {[%clk 00:17:38]} {[%emt 00:00:51]} Kf7
{[%clk 00:01:35]} {[%emt 00:00:48]} 61. Bb5 {[%clk 00:16:49]} {[%emt 00:01:19]}
g5 {[%clk 00:01:20]} {[%emt 00:00:44]} 62. Bd7 {[%clk 00:15:55]} {[%emt
00:01:24]} Be5 {[%clk 00:00:51]} {[%emt 00:00:59]} 63. Rf2 {[%clk 00:15:34]}
{[%emt 00:00:51]} Bd4 {[%clk 00:01:07]} {[%emt 00:00:14]} 64. Re2 {[%clk
00:10:31]} {[%emt 00:05:34]} Be5 {[%clk 00:01:18]} {[%emt 00:00:19]} 65. Rf2
{[%clk 00:10:53]} {[%emt 00:00:07]} Ke7 {[%clk 00:00:52]} {[%emt 00:00:56]} 66.
Rxf6 {[%clk 00:08:55]} {[%emt 00:02:28]} Kxf6 {[%clk 00:01:16]} {[%emt
00:00:06]} 67. Kf3 {[%clk 00:09:14]} {[%emt 00:00:11]} Bd4 {[%clk 00:00:45]}
{[%emt 00:01:01]} 1/2-1/2

[Event "Masters Tournament (MTO)"]
[Site "Biel, Switzerland"]
[Date "2026.07.20"]
[Round "7.28"]
[White "Fogo Esquivel, Levi Kalani Alexander"]
[Black "Stefan, Iulia-Cristiana"]
[Result "0-1"]
[TimeControl "100+30+30sec/move"]
[WhiteTitle "-"]
[BlackTitle "-"]
[WhiteFideId "5183189"]
[BlackFideId "1273876"]
[WhiteElo "2125"]
[BlackElo "2053"]

1. e4 {[%clk 01:36:05]} {[%emt 00:04:54]} e5 {[%clk 01:40:55]} {[%emt
00:00:06]} 2. Nf3 {[%clk 01:36:26]} {[%emt 00:00:09]} Nc6 {[%clk 01:41:20]}
{[%emt 00:00:05]} 3. Bc4 {[%clk 01:36:48]} {[%emt 00:00:07]} Nf6 {[%clk
01:41:45]} {[%emt 00:00:06]} 4. d3 {[%clk 01:37:11]} {[%emt 00:00:06]} h6
{[%clk 01:42:10]} {[%emt 00:00:06]} 5. O-O {[%clk 01:37:35]} {[%emt 00:00:06]}
d6 {[%clk 01:42:36]} {[%emt 00:00:04]} 6. a4 {[%clk 01:37:58]} {[%emt
00:00:06]} g6 {[%clk 01:42:58]} {[%emt 00:00:08]} 7. Nc3 {[%clk 01:38:22]}
{[%emt 00:00:07]} Bg7 {[%clk 01:43:09]} {[%emt 00:00:18]} 8. h3 {[%clk
01:38:43]} {[%emt 00:00:09]} O-O {[%clk 01:43:20]} {[%emt 00:00:20]} 9. Be3
{[%clk 01:39:04]} {[%emt 00:00:09]} Be6 {[%clk 01:43:18]} {[%emt 00:00:32]} 10.
Bxe6 {[%clk 01:39:16]} {[%emt 00:00:17]} fxe6 {[%clk 01:43:47]} {[%emt
00:00:02]} 11. a5 {[%clk 01:39:14]} {[%emt 00:00:32]} a6 {[%clk 01:44:03]}
{[%emt 00:00:14]} 12. Qd2 {[%clk 01:36:51]} {[%emt 00:02:53]} Kh7 {[%clk
01:44:17]} {[%emt 00:00:16]} 13. d4 {[%clk 01:37:11]} {[%emt 00:00:09]} Nh5
{[%clk 01:22:43]} {[%emt 00:22:05]} 14. dxe5 {[%clk 01:22:19]} {[%emt
00:15:22]} Rxf3 {[%clk 01:14:01]} {[%emt 00:09:13]} 15. gxf3 {[%clk 01:19:11]}
{[%emt 00:03:36]} Nxe5 {[%clk 01:07:32]} {[%emt 00:07:00]} 16. Kg2 {[%clk
01:10:31]} {[%emt 00:09:09]} Qf6 {[%clk 00:45:24]} {[%emt 00:22:39]} 17. f4
{[%clk 01:04:36]} {[%emt 00:06:25]} Nc4 {[%clk 00:39:34]} {[%emt 00:06:21]} 18.
Qe2 {[%clk 01:02:38]} {[%emt 00:02:26]} Nxb2 {[%clk 00:32:27]} {[%emt
00:07:38]} 19. Ra3 {[%clk 00:59:04]} {[%emt 00:04:04]} Nxf4+ {[%clk 00:30:10]}
{[%emt 00:02:48]} 20. Bxf4 {[%clk 00:59:24]} {[%emt 00:00:09]} Qxf4 {[%clk
00:30:38]} {[%emt 00:00:02]} 21. Rb3 {[%clk 00:57:43]} {[%emt 00:02:11]} Be5
{[%clk 00:25:29]} {[%emt 00:05:40]} 22. Rh1 {[%clk 00:56:18]} {[%emt 00:01:54]}
Rf8 {[%clk 00:22:53]} {[%emt 00:03:06]} 23. Rxb2 {[%clk 00:48:39]} {[%emt
00:08:10]} Bxc3 {[%clk 00:22:41]} {[%emt 00:00:42]} 24. Rxb7 {[%clk 00:48:13]}
{[%emt 00:00:55]} Bxa5 {[%clk 00:17:40]} {[%emt 00:05:31]} 25. Qe3 {[%clk
00:41:59]} {[%emt 00:06:45]} Qe5 {[%clk 00:13:13]} {[%emt 00:04:57]} 26. Rhb1
{[%clk 00:41:27]} {[%emt 00:01:02]} Rf7 {[%clk 00:11:50]} {[%emt 00:01:53]} 27.
Rd1 {[%clk 00:35:29]} {[%emt 00:06:26]} Bb6 {[%clk 00:09:58]} {[%emt 00:02:23]}
28. f4 {[%clk 00:34:38]} {[%emt 00:01:21]} Qb5 {[%clk 00:07:17]} {[%emt
00:03:11]} 29. Qf3 {[%clk 00:30:51]} {[%emt 00:04:17]} Qc6 {[%clk 00:05:38]}
{[%emt 00:02:09]} 30. Rb8 {[%clk 00:28:58]} {[%emt 00:02:23]} Qxc2+ {[%clk
00:06:03]} {[%emt 00:00:06]} 31. Kh1 {[%clk 00:28:14]} {[%emt 00:01:13]} e5
{[%clk 00:04:49]} {[%emt 00:01:45]} 32. f5 {[%clk 00:27:41]} {[%emt 00:01:03]}
gxf5 {[%clk 00:04:28]} {[%emt 00:00:51]} 33. exf5 {[%clk 00:28:10]} {[%emt
00:00:01]} e4 {[%clk 00:02:57]} {[%emt 00:02:00]} 34. Qf1 {[%clk 00:23:06]}
{[%emt 00:05:33]} e3 {[%clk 00:02:01]} {[%emt 00:01:27]} 35. Qf3 {[%clk
00:19:35]} {[%emt 00:04:01]} Qxf5 {[%clk 00:00:58]} {[%emt 00:01:33]} 36. Qg2
{[%clk 00:18:32]} {[%emt 00:01:33]} Rg7 {[%clk 00:00:38]} {[%emt 00:00:51]} 37.
Rf1 {[%clk 00:19:02]} Rxg2 {[%clk 00:00:37]} {[%emt 00:00:32]} 38. Rxf5 {[%clk
00:19:31]} e2 {[%clk 00:00:41]} {[%emt 00:00:26]} 39. Kxg2 {[%clk 00:19:37]}
{[%emt 00:00:23]} e1=Q {[%clk 00:00:59]} {[%emt 00:00:13]} 40. Rbf8 {[%clk
00:20:01]} {[%emt 00:00:06]} Qg1+ {[%clk 00:00:34]} {[%emt 00:00:55]} 41. Kf3
{[%clk 00:20:30]} Qe3+ {[%clk 00:27:07]} {[%emt 00:03:56]} 42. Kg4 {[%clk
00:50:25]} {[%emt 00:00:34]} Bd4 {[%clk 00:24:30]} {[%emt 00:03:08]} 43. R8f7+
{[%clk 00:50:42]} {[%emt 00:00:14]} Bg7 {[%clk 00:24:47]} {[%emt 00:00:12]} 44.
Rxc7 {[%clk 00:51:03]} {[%emt 00:00:10]} Qe4+ {[%clk 00:20:55]} {[%emt
00:04:21]} 45. Rf4 {[%clk 00:51:23]} {[%emt 00:00:09]} h5+ {[%clk 00:19:25]}
{[%emt 00:02:02]} 46. Kg3 {[%clk 00:51:12]} {[%emt 00:00:40]} Qe3+ {[%clk
00:19:16]} {[%emt 00:00:40]} 47. Rf3 {[%clk 00:51:34]} {[%emt 00:00:07]} Qe1+
{[%clk 00:18:29]} {[%emt 00:01:17]} 48. Kg2 {[%clk 00:51:54]} {[%emt 00:00:08]}
Kh6 {[%clk 00:18:23]} {[%emt 00:00:38]} 49. Rcf7 {[%clk 00:51:45]} {[%emt
00:00:39]} a5 {[%clk 00:17:42]} {[%emt 00:01:12]} 50. Rg3 {[%clk 00:50:44]}
{[%emt 00:01:29]} Be5 {[%clk 00:17:39]} {[%emt 00:00:35]} 51. Rg8 {[%clk
00:51:05]} {[%emt 00:00:08]} Qe4+ {[%clk 00:16:24]} {[%emt 00:01:46]} 52. Rf3
{[%clk 00:51:13]} {[%emt 00:00:21]} a4 {[%clk 00:16:41]} {[%emt 00:00:14]} 53.
Re8 {[%clk 00:51:26]} {[%emt 00:00:16]} Qg6+ {[%clk 00:17:02]} {[%emt
00:00:10]} 54. Kf1 {[%clk 00:51:47]} {[%emt 00:00:09]} Qxe8 {[%clk 00:17:22]}
{[%emt 00:00:09]} 55. h4 {[%clk 00:52:10]} {[%emt 00:00:07]} Qb5+ {[%clk
00:17:39]} {[%emt 00:00:14]} 56. Kg2 {[%clk 00:52:32]} {[%emt 00:00:07]} a3
{[%clk 00:17:51]} {[%emt 00:00:18]} 57. Rf2 {[%clk 00:52:55]} {[%emt 00:00:06]}
Qd5+ {[%clk 00:18:02]} {[%emt 00:00:20]} 58. Kh3 {[%clk 00:53:17]} {[%emt
00:00:08]} Qh1+ {[%clk 00:18:28]} {[%emt 00:00:04]} 0-1

[Event "Masters Tournament (MTO)"]
[Site "Biel, Switzerland"]
[Date "2026.07.20"]
[Round "7.29"]
[White "Angst, Oliver"]
[Black "Yang, Sung-Jui"]
[Result "1-0"]
[TimeControl "100+30+30sec/move"]
[WhiteTitle "-"]
[BlackTitle "-"]
[WhiteFideId "1334069"]
[BlackFideId "16301048"]
[WhiteElo "2121"]
[BlackElo "1935"]

1. e4 {[%emt 00:01:59]} e6 {[%clk 01:38:20]} {[%emt 00:00:44]} 2. d4 {[%clk
01:41:21]} {[%emt 00:00:06]} d5 {[%clk 01:38:42]} {[%emt 00:00:09]} 3. Nc3
{[%clk 01:41:19]} {[%emt 00:00:32]} Nf6 {[%clk 01:39:01]} {[%emt 00:00:11]} 4.
e5 {[%clk 01:40:52]} {[%emt 00:00:57]} Nfd7 {[%clk 01:39:22]} {[%emt 00:00:09]}
5. f4 {[%clk 01:41:13]} {[%emt 00:00:09]} c5 {[%clk 01:39:47]} {[%emt
00:00:04]} 6. Nf3 {[%clk 01:41:35]} {[%emt 00:00:07]} Nc6 {[%clk 01:40:14]}
{[%emt 00:00:04]} 7. Be3 {[%clk 01:41:53]} {[%emt 00:00:12]} cxd4 {[%clk
01:40:19]} {[%emt 00:00:26]} 8. Nxd4 {[%clk 01:42:00]} {[%emt 00:00:22]} Qb6
{[%clk 01:40:14]} {[%emt 00:00:36]} 9. Qd2 {[%clk 01:38:23]} {[%emt 00:04:07]}
Qxb2 {[%clk 01:40:33]} {[%emt 00:00:11]} 10. Rb1 {[%clk 01:38:42]} {[%emt
00:00:11]} Qa3 {[%clk 01:40:52]} {[%emt 00:00:11]} 11. Bb5 {[%clk 01:38:25]}
{[%emt 00:00:47]} Nxd4 {[%clk 01:41:09]} {[%emt 00:00:13]} 12. Bxd4 {[%clk
01:38:16]} {[%emt 00:00:38]} a6 {[%clk 01:41:33]} {[%emt 00:00:07]} 13. Bxd7+
{[%clk 01:38:13]} {[%emt 00:00:33]} Bxd7 {[%clk 01:41:58]} {[%emt 00:00:04]} 14.
Rb3 {[%clk 01:38:34]} {[%emt 00:00:09]} Qe7 {[%clk 01:42:19]} {[%emt 00:00:09]}
15. Rb4 {[%emt 00:00:06]} b6 16. Rxb6 {[%clk 01:38:57]} Qd8 {[%clk 01:40:45]}
{[%emt 00:02:04]} 17. Rb7 {[%clk 01:36:01]} Qc8 {[%clk 01:40:08]} {[%emt
00:04:34]} 18. Bb6 {[%clk 01:36:25]} Qd8 {[%clk 01:29:24]} {[%emt 00:11:20]} 19.
Rc7 {[%clk 01:27:33]} Rc8 {[%clk 01:29:35]} {[%emt 00:09:41]} 20. Qd4 {[%clk
01:25:03]} Qe7 {[%clk 01:27:26]} {[%emt 00:05:38]} 21. Rxc8+ {[%clk 01:23:19]}
{[%emt 00:02:13]} Bxc8 {[%clk 01:27:39]} {[%emt 00:00:19]} 22. O-O {[%clk
01:13:24]} {[%emt 00:10:24]} Qb4 {[%clk 01:27:39]} {[%emt 00:00:30]} 23. Qe3
{[%clk 01:13:21]} {[%emt 00:00:32]} Be7 {[%clk 01:26:32]} {[%emt 00:01:38]} 24.
f5 {[%clk 01:08:41]} {[%emt 00:05:10]} Bg5 {[%clk 01:21:16]} {[%emt 00:05:47]}
25. Qxg5 {[%clk 00:58:03]} {[%emt 00:11:07]} Qxb6+ {[%clk 01:21:37]} {[%emt
00:00:10]} 26. Kh1 {[%clk 00:58:25]} {[%emt 00:00:07]} g6 {[%clk 01:03:14]}
{[%emt 00:18:53]} 27. fxe6 {[%clk 00:12:02]} {[%emt 00:46:53]} Bxe6 {[%clk
01:00:32]} {[%emt 00:02:50]} 28. Qf6 {[%clk 00:10:36]} {[%emt 00:02:18]} Rg8
{[%clk 00:59:23]} {[%emt 00:01:39]} 29. Nxd5 {[%clk 00:08:28]} {[%emt
00:02:38]} Qd8 {[%clk 00:59:29]} {[%emt 00:00:25]} 30. c4 {[%clk 00:05:10]}
{[%emt 00:03:47]} Bxd5 {[%clk 00:53:41]} {[%emt 00:06:18]} 31. cxd5 {[%clk
00:04:53]} {[%emt 00:00:47]} Qxd5 {[%clk 00:53:21]} {[%emt 00:00:51]} 32. Qxa6
{[%clk 00:03:56]} {[%emt 00:01:27]} Kf8 {[%clk 00:50:41]} {[%emt 00:03:10]} 33.
Qf6 {[%clk 00:02:45]} {[%emt 00:01:40]} Ke8 {[%clk 00:51:06]} {[%emt 00:00:06]}
34. h3 {[%clk 00:02:34]} {[%emt 00:00:41]} Qe6 {[%clk 00:50:43]} {[%emt
00:00:53]} 35. Qh4 {[%clk 00:00:43]} {[%emt 00:02:21]} h5 {[%clk 00:50:46]}
{[%emt 00:00:27]} 36. Rb1 {[%clk 00:00:45]} {[%emt 00:00:27]} Kf8 {[%clk
00:51:07]} {[%emt 00:00:10]} 37. Rb8+ {[%clk 00:00:46]} {[%emt 00:00:28]} Kg7
{[%clk 00:51:32]} {[%emt 00:00:05]} 38. Qf6+ {[%clk 00:00:58]} {[%emt
00:00:18]} Kh7 {[%clk 00:51:30]} {[%emt 00:00:33]} 39. Rxg8 {[%clk 00:00:54]}
Kxg8 {[%clk 00:51:08]} {[%emt 00:01:26]} 40. Qxe6 {[%clk 00:01:08]} {[%emt
00:00:15]} fxe6 {[%clk 00:51:36]} {[%emt 00:00:03]} 41. a4 {[%clk 00:01:26]}
{[%emt 00:00:12]} Kf8 {[%clk 00:52:04]} {[%emt 00:00:02]} 42. a5 {[%clk
00:01:24]} {[%emt 00:00:32]} 1-0

[Event "Masters Tournament (MTO)"]
[Site "Biel, Switzerland"]
[Date "2026.07.20"]
[Round "7.30"]
[White "Matsumura, Cocoro"]
[Black "Di Candia, Roberto"]
[Result "1-0"]
[TimeControl "100+30+30sec/move"]
[WhiteTitle "-"]
[BlackTitle "-"]
[WhiteFideId "36087114"]
[BlackFideId "856649"]
[WhiteElo "2225"]
[BlackElo "1988"]

1. e4 {[%clk 01:40:56]} {[%emt 00:00:03]} e5 {[%clk 01:40:56]} {[%emt
00:00:05]} 2. Nf3 {[%clk 01:41:22]} {[%emt 00:00:04]} Nc6 {[%clk 01:41:08]}
{[%emt 00:00:18]} 3. Bb5 {[%clk 01:41:44]} {[%emt 00:00:09]} g6 {[%clk
01:41:20]} {[%emt 00:00:17]} 4. O-O {[%clk 01:41:50]} {[%emt 00:00:24]} Bg7
{[%clk 01:41:40]} {[%emt 00:00:11]} 5. c3 {[%clk 01:42:07]} {[%emt 00:00:13]}
a6 {[%clk 01:42:01]} {[%emt 00:00:09]} 6. Bc4 {[%clk 01:40:00]} {[%emt
00:02:36]} b5 {[%clk 01:41:33]} {[%emt 00:00:58]} 7. Bd5 {[%clk 01:37:17]}
{[%emt 00:03:13]} Nge7 {[%clk 01:37:52]} {[%emt 00:04:11]} 8. d4 {[%clk
01:37:42]} {[%emt 00:00:06]} exd4 {[%clk 01:35:04]} {[%emt 00:03:18]} 9. cxd4
{[%clk 01:33:25]} {[%emt 00:04:46]} O-O {[%clk 01:29:24]} {[%emt 00:06:10]} 10.
Bg5 {[%clk 01:28:33]} {[%emt 00:05:22]} h6 {[%clk 01:29:38]} {[%emt 00:00:16]}
11. Bh4 {[%clk 01:28:43]} {[%emt 00:00:21]} Bb7 {[%clk 01:19:18]} {[%emt
00:10:49]} 12. Nc3 {[%clk 01:27:40]} {[%emt 00:01:34]} d6 {[%clk 01:14:57]}
{[%emt 00:04:51]} 13. h3 {[%clk 01:24:55]} {[%emt 00:03:15]} g5 {[%clk
01:14:04]} {[%emt 00:01:23]} 14. Bg3 {[%clk 01:25:11]} {[%emt 00:00:14]} b4
{[%clk 01:14:09]} {[%emt 00:00:25]} 15. Qb3 {[%clk 01:20:20]} {[%emt 00:05:21]}
Qc8 {[%clk 00:47:52]} {[%emt 00:26:45]} 16. Bxc6 {[%clk 01:17:10]} {[%emt
00:03:42]} Nxc6 {[%clk 00:46:21]} {[%emt 00:02:02]} 17. Nd5 {[%clk 01:13:45]}
{[%emt 00:03:55]} a5 {[%clk 00:45:47]} {[%emt 00:01:04]} 18. Rac1 {[%clk
01:12:43]} {[%emt 00:01:31]} Qd7 {[%clk 00:44:38]} {[%emt 00:01:39]} 19. Rfd1
{[%clk 01:08:23]} {[%emt 00:04:50]} Rac8 {[%clk 00:43:18]} {[%emt 00:01:51]} 20.
e5 {[%clk 00:46:05]} {[%emt 00:22:48]} Qe6 {[%clk 00:26:32]} {[%emt 00:17:15]}
21. Nf6+ {[%clk 00:42:17]} {[%emt 00:04:18]} Bxf6 {[%clk 00:26:33]} {[%emt
00:00:29]} 22. d5 {[%clk 00:42:37]} {[%emt 00:00:10]} Qe8 {[%clk 00:25:47]}
{[%emt 00:01:16]} 23. dxc6 {[%clk 00:42:37]} {[%emt 00:00:31]} Bxc6 {[%clk
00:25:37]} {[%emt 00:00:40]} 24. exf6 {[%clk 00:41:09]} {[%emt 00:01:58]} Ba4
{[%clk 00:26:02]} {[%emt 00:00:05]} 25. Qd3 {[%clk 00:37:53]} {[%emt 00:03:46]}
Bxd1 {[%clk 00:26:28]} {[%emt 00:00:04]} 26. Nxg5 {[%clk 00:34:04]} {[%emt
00:04:19]} Qe1+ {[%clk 00:20:34]} {[%emt 00:06:23]} 27. Kh2 {[%clk 00:34:30]}
{[%emt 00:00:04]} hxg5 {[%clk 00:21:02]} {[%emt 00:00:03]} 28. Qf5 {[%clk
00:34:36]} {[%emt 00:00:24]} Rfd8 {[%clk 00:14:28]} {[%emt 00:07:04]} 29. Qxg5+
{[%clk 00:34:46]} {[%emt 00:00:19]} Kf8 {[%clk 00:14:51]} {[%emt 00:00:08]} 30.
Qg7+ {[%clk 00:35:10]} {[%emt 00:00:05]} Ke8 {[%clk 00:15:18]} {[%emt
00:00:03]} 31. Qg8+ {[%clk 00:35:36]} {[%emt 00:00:05]} Kd7 {[%clk 00:15:43]}
{[%emt 00:00:05]} 32. Qxf7+ {[%clk 00:36:02]} {[%emt 00:00:04]} Qe7 {[%clk
00:16:08]} {[%emt 00:00:04]} 33. Qxe7# {[%clk 00:36:27]} {[%emt 00:00:05]} 1-0